bitfinex/quotes_ETHUSD_20210701
["timestamp","ask_amount","ask_price","bid_price","bid_amount"]
[1625109258592,5.01,2203.2,2201.9,0.14]
[1625109258991,7.43244226,2203.1,2201.9,0.14]
[1625109259092,15.43244226,2203.1,2201.9,0.14]
[1625109259190,5.01,2202.9,2201.7,0.14]
[1625109259389,5.01,2202.9,2201.7,5.15]
[1625109259488,5.01,2202.9,2201.8,0.16]
[1625109259640,5.01,2203.0,2201.8,0.16]
[1625109259741,5.01,2202.9,2201.8,0.16]
[1625109259840,5.01,2202.7,2201.8,0.16]
[1625109260043,5.01,2202.9,2201.9,0.16]
[1625109260641,5.01,2203.0,2201.9,0.16]
[1625109261046,5.01,2203.0,2202.0,0.14]
[1625109261446,0.00648367,2203.4,2202.0,0.14]
[1625109261545,0.00648367,2203.4,2202.1,0.18014132]
[1625109261645,0.00648367,2203.4,2202.1,5.14994132]
[1625109261744,7.50597352,2203.4,2202.2,0.12]
[1625109261999,10.13859874,2203.4,2202.1,0.18014132]
[1625109262099,16.94838874,2203.4,2202.0,1.1229]
[1625109262399,31.94838874,2203.4,2202.0,1.1229]
[1625109262600,16.94838874,2203.4,2202.0,1.1229]
[1625109262700,5.01,2203.2,2202.0,0.14]
[1625109262799,7.66066436,2203.1,2202.0,0.14]
[1625109262900,5.01,2203.2,2202.0,0.14]
[1625109263000,5.01,2203.1,2202.0,0.14]
[1625109263101,7.69029979,2203.3,2202.0,0.14]
[1625109263203,7.69029979,2203.3,2202.0,3.693]
[1625109263298,14.39579308,2203.4,2202.0,3.693]
[1625109263399,14.39579308,2203.4,2202.2,5.01]
[1625109263500,14.39579308,2203.4,2202.1,0.16]
[1625109263804,14.39579308,2203.4,2202.0,0.14]
[1625109263903,32.0284183,2203.4,2202.0,0.14]
[1625109264239,5.01,2203.2,2202.0,0.14]
[1625109264342,7.39349824,2203.1,2202.0,0.14]
[1625109264442,5.01,2203.2,2202.0,0.14]
[1625109264542,7.39216054,2203.1,2202.0,0.14]
[1625109264638,7.87977976,2203.3,2202.0,0.14]
[1625109264742,7.39520252,2203.1,2202.0,0.14]
[1625109264840,5.01,2203.1,2202.0,0.14]
[1625109264942,13.01,2203.1,2202.0,0.14]
[1625109265043,8.32756181,2203.0,2202.0,0.14]
[1625109265141,5.01,2202.9,2202.0,0.14]
[1625109265240,13.01717725,2202.8,2201.3,10.8474]
[1625109265340,5.01,2202.7,2201.4,0.14]
[1625109265439,7.31178187,2202.6,2201.4,0.34]
[1625109265543,7.39424506,2202.6,2201.4,0.34]
[1625109265640,2.9134,2202.9,2201.5,0.1]
[1625109265641,7.69987268,2202.8,2201.5,0.1]
[1625109265741,2.9134,2202.9,2201.5,0.1]
[1625109265841,2.9134,2202.9,2201.6,0.14]
[1625109266145,7.51007185,2202.8,2201.6,0.14]
[1625109266381,1.4152,2202.9,2201.6,0.14]
[1625109266481,7.41837013,2202.8,2201.6,0.14]
[1625109266583,12.42837013,2202.8,2201.7,0.16]
[1625109266782,12.42837013,2202.8,2201.8,0.1]
[1625109267486,19.23906013,2202.8,2201.7,0.14]
[1625109267587,14.22906013,2202.8,2201.7,0.14]
[1625109267986,6.81069,2202.8,2201.7,0.14]
[1625109268086,7.68404758,2203.1,2201.7,0.14]
[1625109268290,7.68404758,2203.1,2201.8,0.12]
[1625109268392,7.68404758,2203.1,2201.5,5.01]
[1625109268656,7.68404758,2203.1,2201.6,0.14]
[1625109268840,14.49383758,2203.1,2201.8,6.80967]
[1625109269039,14.49383758,2203.1,2201.9,0.34]
[1625109269639,14.49383758,2203.1,2201.9,0.14]
[1625109270940,6.80979,2203.1,2201.9,0.14]
[1625109271236,6.80979,2203.1,2201.9,0.3073839]
[1625109271334,6.80979,2203.1,2201.9,4.8143]
[1625109271433,6.80979,2203.1,2202.0,0.12]
[1625109271637,14.21023174,2203.1,2202.0,0.12]
[1625109271735,6.80979,2203.1,2202.0,0.12]
[1625109271835,14.3519534,2203.1,2202.0,0.12]
[1625109271985,14.3519534,2203.1,2201.9,1.7718]
[1625109271986,14.3519534,2203.1,2202.1,0.06]
[1625109273088,14.3519534,2203.1,2201.9,5.15]
[1625109273633,5.01,2202.9,2201.9,0.14]
[1625109273730,8.0500588,2202.8,2201.7,9.07935]
[1625109273828,21.0600588,2202.8,2201.4,0.14]
[1625109273929,0.06333252,2202.7,2201.4,0.14]
[1625109274030,0.06333252,2202.7,2201.5,5.01]
[1625109274132,22.5548588,2202.8,2201.5,5.05]
[1625109274229,17.5448588,2202.8,2201.5,0.04]
[1625109274330,9.5448588,2202.8,2201.5,0.04]
[1625109274431,6.81055,2202.7,2201.5,6.85103]
[1625109274533,7.59926618,2202.6,2201.6,0.2]
[1625109274633,7.87461636,2202.9,2201.4,0.14]
[1625109274832,1.0332,2202.8,2201.4,0.14]
[1625109274983,7.78428017,2202.6,2201.4,0.14]
[1625109275287,8.34506595,2202.9,2201.5,0.1]
[1625109275530,8.34506595,2202.9,2201.6,0.18]
[1625109275632,5.01,2202.7,2201.6,0.18]
[1625109275732,7.92274955,2202.6,2201.9,6.80975]
[1625109275833,7.92274955,2202.6,2201.6,9.0799]
[1625109276332,7.92274955,2202.6,2201.8,5.01]
[1625109276436,7.92274955,2202.6,2201.7,0.04]
[1625109276536,7.92274955,2202.6,2201.8,5.01]
[1625109276635,7.92274955,2202.6,2201.7,0.04]
[1625109276936,7.92274955,2202.6,2201.8,0.08]
[1625109277136,8.2026854,2202.9,2201.8,0.08]
[1625109277435,8.2026854,2202.9,2201.9,0.08]
[1625109277534,8.2026854,2202.9,2201.6,9.0799]
[1625109277781,8.2026854,2202.9,2201.8,5.01]
[1625109278685,15.0124754,2202.9,2202.1,6.80933]
[1625109279184,6.80979,2202.9,2202.1,6.80933]
[1625109279285,12.93722522,2203.3,2202.1,6.80933]
[1625109279391,10.3046,2203.3,2202.3,5.01]
[1625109279493,0.00613079,2203.4,2202.3,5.01]
[1625109279494,0.00613079,2203.4,2202.4,0.28074485]
[1625109279688,20.6533,2203.5,2202.5,0.34]
[1625109279787,20.6533,2203.5,2202.8,6.80749]
[1625109279930,14.14023014,2203.6,2202.8,11.46329]
[1625109280030,6.80771,2203.6,2202.8,11.64520134]
[1625109280231,14.19807195,2203.6,2202.8,4.6558]
[1625109280426,14.19807195,2203.6,2202.9,0.08]
[1625109280528,6.80771,2203.6,2202.9,0.08]
[1625109280831,25.15554904,2203.8,2202.9,6.88712]
[1625109280929,25.15554904,2203.8,2203.0,0.18]
[1625109281033,14.32264904,2203.8,2203.0,0.18]
[1625109281129,14.32264904,2203.8,2202.9,1.5303]
[1625109281532,14.32264904,2203.8,2202.9,0.14]
[1625109281635,3.40425,2203.7,2202.9,0.14]
[1625109281732,8.3480279,2203.6,2202.4,9.07714]
[1625109282046,6.80892,2203.3,2202.5,0.04]
[1625109282375,14.22963,2203.3,2202.5,0.04]
[1625109282575,6.80892,2203.3,2202.5,0.04]
[1625109282678,7.96545547,2203.6,2202.5,0.04]
[1625109282781,17.18628731,2203.8,2202.6,5.15]
[1625109282877,9.8374,2203.8,2202.6,5.35]
[1625109282978,9.8374,2203.8,2202.7,5.01]
[1625109283178,9.8374,2203.8,2202.7,5.21]
[1625109283179,7.34849237,2203.7,2202.7,5.21]
[1625109283278,7.34849237,2203.7,2202.7,0.2]
[1625109283379,7.34849237,2203.7,2203.0,6.8065]
[1625109283481,5.01,2203.5,2202.8,9.13533]
[1625109283736,7.69475216,2203.7,2202.8,9.13533]
[1625109283831,7.80458965,2203.9,2202.8,9.13533]
[1625109283931,7.80458965,2203.9,2202.9,0.14]
[1625109285141,6.8074,2203.6,2202.9,6.94689]
[1625109285237,7.69696436,2203.5,2202.6,0.14]
[1625109286344,8.0,2203.5,2202.6,0.14]
[1625109286441,7.38320623,2203.4,2202.6,0.14]
[1625109286541,7.38320623,2203.4,2202.7,0.04]
[1625109286973,7.38320623,2203.4,2202.7,6.84766]
[1625109287273,15.38320623,2203.4,2202.4,9.07714]
[1625109287374,5.01,2203.2,2202.4,9.07714]
[1625109287472,5.01,2203.2,2202.3,0.14]
[1625109287578,7.5655297,2203.1,2201.9,11.34429]
[1625109287776,7.5655297,2203.1,2201.9,19.50990234]
[1625109287871,7.5655297,2203.1,2202.0,0.2]
[1625109288073,14.16032517,2203.1,2202.2,6.80915]
[1625109288479,16.59869464,2203.3,2202.2,6.80915]
[1625109288575,7.51998464,2203.3,2202.2,6.80915]
[1625109288673,7.51998464,2203.3,2202.2,6.94915]
[1625109288776,7.51998464,2203.3,2202.3,0.2]
[1625109289926,23.11302059,2203.5,2202.3,0.2]
[1625109290423,6.80862,2203.3,2202.4,6.80862]
[1625109290629,15.673,2203.5,2202.5,0.1]
[1625109290726,10.8048,2203.7,2202.6,5.01]
[1625109290825,18.1002791,2203.7,2202.7,0.18464982]
[1625109290927,10.8048,2203.7,2202.7,0.18464982]
[1625109291023,18.14984784,2203.7,2202.8,0.14]
[1625109291124,10.8048,2203.7,2202.8,0.14]
[1625109291224,10.8048,2203.7,2202.8,5.25]
[1625109291324,10.8048,2203.7,2202.8,0.24]
[1625109291425,10.8048,2203.7,2202.8,0.14]
[1625109291626,24.91292368,2203.7,2203.0,6.80701]
[1625109291734,6.80727,2203.7,2203.0,10.95651]
[1625109291929,9.07601,2204.0,2203.0,10.95651]
[1625109292029,9.07601,2204.0,2203.1,0.2]
[1625109293482,14.23180666,2203.9,2203.1,7.00655]
[1625109293584,6.80682,2203.9,2203.2,0.04]
[1625109294080,6.80682,2203.9,2203.1,6.80655]
[1625109294583,9.07601,2204.0,2203.1,6.80655]
[1625109294681,14.20439705,2204.1,2203.1,6.80655]
[1625109294782,14.20439705,2204.1,2203.1,6.97336106]
[1625109294883,14.20439705,2204.1,2203.2,0.12]
[1625109295086,22.20439705,2204.1,2203.2,0.12]
[1625109295187,5.01,2203.9,2202.8,0.14]
[1625109295283,5.01,2203.9,2202.7,9.07605]
[1625109295383,7.42264962,2203.8,2202.7,9.07605]
[1625109295594,5.01,2203.6,2202.6,0.14]
[1625109295738,5.01,2203.6,2202.5,17.38947]
[1625109295739,6.8084,2203.4,2202.5,17.38947]
[1625109295931,6.8084,2203.4,2202.5,6.80827]
[1625109296032,6.8084,2203.4,2202.6,0.1]
[1625109296033,7.34303653,2203.3,2202.6,0.1]
[1625109296131,8.93,2203.4,2202.6,0.1]
[1625109296232,2.1216,2203.4,2202.6,0.1]
[1625109296332,1.3023,2203.4,2202.6,0.1]
[1625109296438,7.87789372,2203.7,2202.3,9.21755]
[1625109296683,6.8077,2203.6,2202.6,6.80782]
[1625109296785,5.01,2203.5,2202.6,6.80782]
[1625109296881,7.38325928,2203.5,2202.6,6.94782]
[1625109297183,6.8077,2203.6,2202.6,6.94782]
[1625109297282,7.38365247,2203.5,2202.6,6.94782]
[1625109297382,7.38365247,2203.5,2202.7,0.04]
[1625109297732,6.8077,2203.6,2202.7,0.04]
[1625109297832,14.35001129,2203.5,2202.7,0.04]
[1625109298075,14.35001129,2203.5,2202.3,9.07755]
[1625109299077,18.22891129,2203.5,2202.3,9.07755]
[1625109300357,15.14826359,2203.2,2202.3,9.07755]
[1625109300451,23.14826359,2203.2,2202.3,9.07755]
[1625109300557,5.01,2203.0,2202.1,9.07794]
[1625109300655,7.46375907,2202.9,2202.1,9.07794]
[1625109300755,5.01,2203.0,2202.1,9.07794]
[1625109300851,5.01,2203.0,2202.2,0.04]
[1625109301053,9.0774,2203.2,2202.3,5.01]
[1625109301154,7.60534867,2203.3,2202.3,5.01]
[1625109301253,9.07883,2203.4,2202.4,0.16]
[1625109301357,7.621359,2203.5,2202.4,0.16]
[1625109301451,7.621359,2203.5,2202.5,0.12]
[1625109301553,14.429869,2203.5,2202.6,6.8079]
[1625109302850,14.429869,2203.5,2202.4,9.07719]
[1625109304051,14.429869,2203.5,2202.5,0.08]
[1625109304452,21.279869,2203.5,2202.5,0.08]
[1625109305502,21.279869,2203.5,2202.4,9.07719]
[1625109306405,21.279869,2203.5,2202.6,6.80817]
[1625109306701,13.65851,2203.5,2202.6,6.80817]
[1625109307052,20.96205054,2203.5,2202.6,6.80817]
[1625109307259,20.96805054,2203.5,2202.6,6.80817]
[1625109309057,20.96805054,2203.5,2202.7,0.2]
[1625109309296,20.96805054,2203.5,2202.7,0.34]
[1625109309391,0.01371734,2203.1,2202.7,0.34]
[1625109309493,0.01371734,2203.1,2202.8,0.1]
[1625109309591,0.02743467,2203.1,2202.8,0.1]
[1625109311195,0.02743467,2203.1,2202.9,0.14]
[1625109311397,0.02743467,2203.1,2202.8,6.80781]
[1625109311549,0.02743467,2203.1,2202.7,0.14]
[1625109312346,0.02743467,2203.1,2202.7,6.94809]
[1625109312546,0.02743467,2203.1,2202.9,5.01]
[1625109312845,0.02743467,2203.1,2203.0,11.84]
[1625109313296,0.02743467,2203.1,2203.0,12.04]
[1625109314408,0.02743467,2203.1,2203.0,18.84652]
[1625109315425,1.467e-05,2203.1,2203.0,18.84652]
[1625109315529,1.467e-05,2203.1,2203.0,23.85652]
[1625109315726,0.006,2203.5,2203.0,23.85652]
[1625109315827,0.006,2203.5,2203.2,5.01]
[1625109316144,0.006,2203.5,2203.3,0.14]
[1625109316448,31.26676,2204.7,2203.3,0.14]
[1625109316544,31.32616,2204.7,2203.4,0.32120221]
[1625109316672,19.9803,2204.7,2203.5,5.01]
[1625109316745,19.9803,2204.7,2204.0,6.80385]
[1625109316846,9.9174,2204.7,2204.0,11.33375]
[1625109316946,9.9174,2204.7,2204.1,0.14]
[1625109317046,11.34386,2205.1,2204.1,0.14]
[1625109317047,11.34386,2205.1,2204.1,0.29714876]
[1625109317144,10.2077,2205.3,2204.2,0.28155188]
[1625109317243,7.26551623,2205.2,2204.2,5.29155188]
[1625109317346,7.26551623,2205.2,2204.3,0.06]
[1625109317543,7.26551623,2205.2,2204.0,4.5299]
[1625109317643,10.2077,2205.3,2204.0,4.5299]
[1625109317744,10.2077,2205.3,2204.1,0.14]
[1625109318050,7.28173642,2205.4,2204.2,9.0699]
[1625109318148,7.28173642,2205.4,2204.2,12.3599]
[1625109318317,7.28173642,2205.4,2204.3,0.28]
[1625109318617,10.6852,2205.5,2204.3,0.28]
[1625109318918,10.6852,2205.5,2204.3,9.72164491]
[1625109319017,10.6852,2205.5,2204.8,6.80068]
[1625109319115,10.728,2205.8,2204.8,10.56598]
[1625109319216,6.80031,2206.1,2204.9,0.14]
[1625109319717,6.80031,2206.1,2205.0,5.01]
[1625109319823,10.849,2206.2,2205.1,9.38993616]
[1625109319919,0.917773,2206.3,2205.1,9.58993616]
[1625109320019,31.1176,2206.5,2205.2,0.14]
[1625109320119,31.1176,2206.5,2205.4,1.3684]
[1625109320219,31.1176,2206.5,2205.4,17.92143692]
[1625109320220,10.1858,2206.5,2205.4,17.92143692]
[1625109320319,0.00679253,2206.7,2205.6,5.01]
[1625109320417,0.00679253,2206.7,2205.6,5.01812357]
[1625109320569,0.00679253,2206.7,2205.7,0.14]
[1625109320767,0.00679253,2206.7,2205.8,0.04]
[1625109320968,0.00679253,2206.7,2205.9,0.14]
[1625109321067,8.170513,2207.0,2205.9,4.4188]
[1625109321169,17.94014553,2207.1,2206.0,8.04011962]
[1625109321267,10.7432,2207.1,2206.0,0.14]
[1625109321369,17.54032,2207.1,2206.0,0.14]
[1625109321469,17.54032,2207.1,2206.1,0.16]
[1625109321568,24.80554871,2207.1,2206.1,0.16]
[1625109321668,24.80554871,2207.1,2206.2,0.14]
[1625109321772,24.80554871,2207.1,2205.4,10.9403]
[1625109321868,24.80554871,2207.1,2206.2,0.14]
[1625109322930,24.80554871,2207.1,2206.2,5.15]
[1625109323033,24.80554871,2207.1,2206.2,0.14]
[1625109324131,5.01,2206.9,2206.2,0.14]
[1625109324883,10.7432,2207.1,2206.2,4.6983]
[1625109325089,20.5156,2207.3,2206.4,5.01]
[1625109325186,8.08118452,2207.6,2206.4,5.01]
[1625109325288,12.96628395,2207.7,2206.5,0.14]
[1625109325488,7.26212044,2207.6,2206.5,6.93509]
[1625109325585,7.26212044,2207.6,2206.6,0.04]
[1625109325689,10.452,2207.7,2206.6,0.04]
[1625109325891,10.452,2207.7,2206.7,0.14]
[1625109325988,10.452,2207.7,2206.7,4.3766]
[1625109326104,20.8421,2207.9,2206.8,0.12]
[1625109326198,20.8421,2207.9,2206.9,5.01]
[1625109326291,28.051871,2207.9,2206.9,0.32]
[1625109326388,20.8421,2207.9,2206.9,0.32]
[1625109326486,20.8421,2207.9,2207.0,0.04]
[1625109326687,20.8421,2207.9,2207.1,0.14]
[1625109327329,10.28,2207.9,2207.1,5.15]
[1625109327417,10.28,2207.9,2207.2,0.14]
[1625109327518,10.28,2207.9,2207.3,5.01]
[1625109327667,10.28,2207.9,2207.3,0.14]
[1625109329265,10.28,2207.9,2207.4,0.04]
[1625109329467,10.28,2207.9,2207.5,0.14]
[1625109330349,6.85,2208.2,2207.5,0.14]
[1625109330453,6.85,2208.2,2207.3,6.79244]
[1625109330648,6.85,2208.2,2207.4,0.14]
[1625109331048,6.85,2208.2,2207.3,2.96636167]
[1625109331197,6.85,2208.2,2207.4,0.14]
[1625109331497,6.85,2208.2,2207.5,6.79186]
[1625109331599,6.85,2208.2,2207.5,6.87186]
[1625109331700,6.85,2208.2,2207.6,0.14]
[1625109332344,5.01,2208.0,2207.2,4.1013]
[1625109332444,7.18033949,2207.9,2207.6,0.14]
[1625109332550,12.19033949,2207.9,2207.6,0.14]
[1625109332648,12.19033949,2207.9,2206.6,3.29]
[1625109332748,0.28194309,2207.8,2207.4,0.14]
[1625109332847,5.01,2207.7,2206.7,0.14]
[1625109332943,7.60332589,2207.6,2206.7,0.14]
[1625109333044,7.73829247,2207.6,2206.8,0.14]
[1625109333143,7.73829247,2207.6,2206.4,0.00671836]
[1625109333247,5.01,2207.4,2206.5,0.14]
[1625109333347,7.80733819,2207.3,2206.5,0.14]
[1625109333453,7.80733819,2207.3,2206.4,0.00671836]
[1625109333549,5.01,2207.1,2206.4,0.00671836]
[1625109333747,7.72448921,2207.0,2206.4,0.00671836]
[1625109334047,6.5538,2207.1,2206.4,0.00671836]
[1625109334184,12.24238272,2207.0,2206.4,0.00671836]
[1625109334383,7.3185118,2206.8,2206.4,0.00671836]
[1625109334481,12.3285118,2206.8,2206.4,0.00671836]
[1625109334687,6.79869,2206.7,2206.4,0.00671836]
[1625109334786,6.79869,2206.7,2205.6,0.14]
[1625109334787,7.39090483,2206.6,2205.6,0.14]
[1625109334884,7.58709112,2206.6,2205.2,6.7985]
[1625109334989,0.19618629,2206.6,2205.6,0.14]
[1625109335087,0.19618629,2206.6,2205.3,0.14]
[1625109335088,5.01,2206.4,2205.3,0.14]
[1625109335184,0.16319831,2206.3,2204.5,3.29]
[1625109335287,11.99805181,2206.3,2205.3,0.14]
[1625109335387,5.01,2206.1,2205.3,0.14]
[1625109335485,5.01,2206.1,2204.5,11.1918663]
[1625109335486,8.4173947,2206.0,2204.5,7.96986202]
[1625109335584,8.4173947,2206.0,2204.6,2.0]
[1625109335687,8.4173947,2206.0,2204.7,0.14]
[1625109335787,8.4173947,2206.0,2204.4,10.4934]
[1625109335885,5.01,2205.8,2204.8,0.14]
[1625109335987,0.13003277,2205.7,2204.8,0.14]
[1625109336089,8.2493598,2206.0,2204.8,0.14]
[1625109336090,0.15204497,2205.9,2204.8,0.14]
[1625109336185,8.3944753,2206.0,2204.8,0.14]
[1625109336287,5.01,2205.8,2204.8,0.14]
[1625109336445,7.29171722,2205.7,2204.8,0.14]
[1625109336533,7.74647602,2205.7,2204.8,0.14]
[1625109336633,7.74647602,2205.7,2204.6,0.14]
[1625109336737,0.17058629,2205.6,2204.6,0.14]
[1625109336832,7.87843221,2205.7,2204.6,0.14]
[1625109336933,7.74647602,2205.7,2204.6,0.14]
[1625109337140,7.74647602,2205.7,2204.6,9.20678]
[1625109337438,9.11368474,2205.9,2204.6,9.20678]
[1625109337439,8.38142939,2205.9,2204.6,9.20678]
[1625109337539,7.88760998,2206.3,2204.7,0.16]
[1625109337637,7.72970141,2206.3,2204.7,0.16]
[1625109337740,7.72970141,2206.3,2204.8,0.14]
[1625109337836,7.72970141,2206.3,2204.8,0.28]
[1625109338138,7.72970141,2206.3,2204.8,5.29]
[1625109338243,7.72970141,2206.3,2205.2,6.79905]
[1625109338343,7.72970141,2206.3,2205.2,11.75455]
[1625109338441,7.72970141,2206.3,2205.3,0.14]
[1625109338774,8.33499215,2206.6,2205.3,0.14]
[1625109339176,8.33499215,2206.6,2205.4,5.01]
[1625109339276,15.13392215,2206.6,2205.4,5.01]
[1625109339381,15.13392215,2206.6,2205.3,0.14]
[1625109339577,17.78689145,2206.6,2205.3,0.14]
[1625109341134,5.01,2206.4,2205.3,0.14]
[1625109341231,7.95627993,2206.3,2205.3,0.14]
[1625109341333,15.95627993,2206.3,2205.3,0.14]
[1625109341636,7.81257393,2206.3,2205.3,0.14]
[1625109341838,7.81257393,2206.3,2205.4,5.01]
[1625109341937,7.81257393,2206.3,2205.4,8.1826]
[1625109342039,5.01,2206.4,2205.5,0.14]
[1625109342137,14.15069288,2206.5,2205.5,0.14]
[1625109342138,9.8373,2206.7,2205.5,0.14]
[1625109342244,9.8373,2206.7,2205.5,9.85464054]
[1625109342339,9.8373,2206.7,2205.7,5.01]
[1625109342461,17.62111565,2207.0,2205.7,5.01]
[1625109342536,17.62111565,2207.0,2205.8,0.12]
[1625109342637,7.25631565,2207.0,2205.8,0.26]
[1625109342839,20.8902,2207.2,2206.1,11.57126]
[1625109342840,10.3745,2207.2,2206.1,11.57126]
[1625109342939,7.61318223,2207.3,2206.1,11.57126]
[1625109343039,7.61318223,2207.3,2206.2,0.14]
[1625109343479,4.5,2207.2,2206.1,12.79646]
[1625109343576,7.61318223,2207.3,2206.2,0.14]
[1625109343681,10.8234,2207.5,2206.2,0.14]
[1625109343682,18.10180656,2207.5,2206.2,0.14]
[1625109343780,18.10180656,2207.5,2206.3,5.01]
[1625109343878,18.10180656,2207.5,2206.3,5.17]
[1625109343980,18.10180656,2207.5,2206.4,0.14]
[1625109344080,18.10180656,2207.5,2206.5,6.7953]
[1625109344177,7.27840656,2207.5,2206.5,6.7953]
[1625109344277,37.2204411,2207.7,2206.6,0.14]
[1625109344377,6.79578,2207.7,2206.6,4.3001]
[1625109344481,7.24139663,2207.6,2206.6,4.3001]
[1625109345438,12.65,2207.5,2206.5,1.7489]
[1625109345540,7.25470889,2207.4,2206.6,0.14]
[1625109345640,6.7966,2207.3,2206.6,0.14]
[1625109345844,7.99366987,2207.7,2206.6,0.14]
[1625109345941,7.99366987,2207.7,2206.6,4.6378]
[1625109346044,5.01,2207.5,2206.6,4.6378]
[1625109346713,7.19183471,2207.4,2206.6,4.6378]
[1625109346814,5.01,2207.5,2206.6,4.6378]
[1625109346915,12.22557361,2207.4,2206.6,4.6378]
[1625109347114,7.21557361,2207.4,2206.6,4.6378]
[1625109347514,7.21756983,2207.4,2206.6,4.6378]
[1625109347613,11.80628,2207.5,2206.6,1.95306276]
[1625109347720,7.76609757,2207.4,2206.7,0.14]
[1625109347945,7.76609757,2207.4,2205.8,0.30152269]
[1625109347946,15.42906687,2207.4,2205.2,0.29390535]
[1625109348022,15.42906687,2207.4,2205.2,9.8663]
[1625109348023,5.38661713,2207.3,2205.2,9.8663]
[1625109348121,6.79863,2206.6,2205.2,10.0063]
[1625109348222,7.67630248,2206.7,2205.5,6.79863]
[1625109348321,5.01,2206.5,2205.2,0.14]
[1625109348447,0.25380285,2206.4,2205.2,0.14]
[1625109348548,7.55687369,2206.4,2205.2,0.14]
[1625109348844,0.14,2206.7,2205.2,0.14]
[1625109348845,0.27354256,2206.6,2205.2,0.14]
[1625109349050,5.01,2206.5,2205.2,0.14]
[1625109349146,7.18662749,2206.4,2205.4,0.1]
[1625109349246,0.16473554,2206.4,2205.4,0.24]
[1625109349354,0.16473554,2206.4,2205.5,5.01]
[1625109349449,6.79826,2206.6,2205.5,5.01]
[1625109349549,6.79826,2206.6,2205.5,11.84826]
[1625109349648,6.79826,2206.6,2205.6,0.14]
[1625109349751,7.27057886,2206.5,2205.1,9.06554]
[1625109349853,7.40345884,2206.5,2205.2,0.14]
[1625109349952,5.01,2206.3,2205.2,0.14]
[1625109350053,8.04842753,2206.2,2205.2,0.14]
[1625109350155,8.04842753,2206.2,2204.9,10.4628]
[1625109350250,5.01,2206.0,2205.0,0.14]
[1625109350350,7.74204741,2205.9,2205.0,0.14]
[1625109350600,6.80113,2205.7,2205.0,0.14]
[1625109350849,7.31188849,2205.6,2205.0,0.14]
[1625109351051,0.16798619,2205.9,2205.0,0.14]
[1625109351052,8.27862629,2205.9,2205.0,0.14]
[1625109351148,8.1106401,2205.9,2205.0,0.14]
[1625109352050,8.1106401,2205.9,2205.0,6.93976]
[1625109352802,7.90901709,2206.2,2205.0,6.93976]
[1625109352997,20.4431,2206.5,2205.2,5.01]
[1625109353090,8.17346988,2206.7,2205.2,5.01]
[1625109353194,8.17346988,2206.7,2205.3,5.15]
[1625109353492,8.17346988,2206.7,2205.6,6.79791]
[1625109353590,5.01,2206.5,2205.6,6.79791]
[1625109353693,5.01,2206.5,2205.7,0.14]
[1625109353890,16.17346988,2206.7,2205.7,0.14]
[1625109353994,8.17346988,2206.7,2205.7,0.14]
[1625109354095,8.17346988,2206.7,2205.7,4.2492]
[1625109354495,14.97130988,2206.7,2205.9,5.01]
[1625109354593,14.97130988,2206.7,2205.6,8.02231]
[1625109354693,14.97130988,2206.7,2205.8,0.14]
[1625109355343,14.97130988,2206.7,2205.8,5.15]
[1625109355545,14.97130988,2206.7,2205.8,0.14]
[1625109355942,5.01,2206.5,2205.8,0.14]
[1625109356145,14.97130988,2206.7,2205.8,6.9374]
[1625109356247,7.43164847,2206.8,2205.9,0.06]
[1625109356347,10.3781,2206.9,2205.9,0.06]
[1625109356445,7.77729806,2207.1,2205.9,0.06]
[1625109356546,15.77729806,2207.1,2206.0,0.14]
[1625109356844,7.77729806,2207.1,2206.0,4.4339]
[1625109357144,7.77729806,2207.1,2206.2,5.01]
[1625109357145,7.21776678,2207.1,2206.2,5.01]
[1625109357245,7.21776678,2207.1,2206.3,6.79595]
[1625109357560,7.21776678,2207.1,2206.4,0.14]
[1625109357664,8.43808979,2207.3,2206.4,0.14]
[1625109357760,8.43808979,2207.3,2206.1,9.06126]
[1625109357859,8.43808979,2207.3,2206.2,0.14]
[1625109358061,5.01,2207.1,2206.2,0.14]
[1625109358168,7.6640603,2207.0,2206.2,0.14]
[1625109358560,7.29741036,2207.0,2206.2,0.14]
[1625109358664,12.30741036,2207.0,2206.2,0.14]
[1625109358760,7.29741036,2207.0,2206.2,0.14]
[1625109358871,7.30081245,2207.2,2206.2,6.936]
[1625109358966,10.0887,2207.4,2206.3,5.01]
[1625109359067,17.33074657,2207.5,2206.4,5.01]
[1625109359166,7.36654657,2207.5,2206.4,5.01]
[1625109359263,7.36654657,2207.5,2206.4,5.15]
[1625109359364,7.36654657,2207.5,2206.4,0.14]
[1625109359564,7.36654657,2207.5,2206.4,5.15]
[1625109360096,7.36654657,2207.5,2206.5,6.79521]
[1625109360295,7.36654657,2207.5,2206.6,0.14]
[1625109360896,5.01,2207.6,2206.6,0.14]
[1625109361097,7.42346763,2207.5,2206.6,0.14]
[1625109361198,5.01,2207.6,2206.6,0.14]
[1625109361403,7.55862384,2207.7,2206.6,0.14]
[1625109362054,47.21558,2207.8,2206.6,0.14]
[1625109362253,5.01,2207.6,2206.6,0.14]
[1625109362356,43.8176,2207.8,2206.6,6.93466]
[1625109362357,7.47893766,2207.7,2206.6,6.93466]
[1625109362457,16.79431,2207.8,2206.6,6.93466]
[1625109362556,16.79431,2207.8,2206.7,0.1]